Cogmind - Beta 13 @@@ ROGUE MODE // 2024.04.04 @ 18:48:41 Player: Spuddz Result: Self-destructed Performance ------------- Evolutions (1) 500 Regions Visited (3) 600 Robots Destroyed (23) 115 Value Destroyed (352) 352 Prototype IDs (0) 0 Alien Tech Used (0) 0 Bonus (0) 0 TOTAL SCORE: 1567 Bonus ------- None Cogmind --------- Core Integrity 300/400 Matter 300/300 Energy 250/250 System Corruption 0% Temperature Cool (0) Movement Core (950) Ox18 Location -9/Materials Parts ------- > --- POWER (1) -------- Ion Engine > --- PROPULSION (3) --- (None) > --- UTILITY (3) ------ High-capacity Storage Unit Hardened Light Armor Plating Hardened Light Armor Plating > --- WEAPON (2) ------- Light Assault Rifle > --- INVENTORY (20) --- Heat Sink Hardened Light Armor Plating Hardened Light Armor Plating Hardened Light Armor Plating Hardened Light Armor Plating Hardened Light Armor Plating Hardened Light Armor Plating Peak State ------------ > --- POWER ------------ Ion Engine > --- PROPULSION ------- Light Treads Light Treads > --- UTILITY ---------- High-capacity Storage Unit Hardened Light Armor Plating Hardened Light Armor Plating > --- WEAPON ----------- Assault Rifle Assault Rifle > --- INVENTORY -------- Heat Sink Hardened Light Armor Plating Hardened Light Armor Plating Hardened Light Armor Plating Hardened Light Armor Plating Hardened Light Armor Plating Hardened Light Armor Plating Light Assault Rifle [Rating: 11] Favorites ----------- Power Ion Engine Engine Ion Engine Propulsion Light Treads Treads Light Treads Utility Hardened Light Armor Plating Storage High-capacity Storage Unit Protection Hardened Light Armor Plating Weapon Assault Rifle Ballistic Gun Assault Rifle Launcher Grenade Launcher Build | -11 -10 -10 -9 ------- Run | Yrd Mat Min Mat Slots Evolved 2 | . . . 2 Power . | . . . . Propulsion 1 | . . . 1 Utility 1 | . . . 1 Weapon . | . . . . Parts Attached 16 | 6 7 . 3 Power 2 | 1 1 . . Engine 2 | 1 1 . . Core . | . . . . Reactor . | . . . . Propulsion 2 | 2 . . . Treads 2 | 2 . . . Leg . | . . . . Wheel . | . . . . Hover . | . . . . Flight . | . . . . Utility 5 | 1 2 . 2 Device . | . . . . Storage 2 | 1 1 . . Processor . | . . . . Hackware . | . . . . Protection 3 | . 1 . 2 Artifact . | . . . . Weapon 7 | 2 4 . 1 Energy Gun . | . . . . Energy Cannon . | . . . . Ballistic Gun 5 | 2 2 . 1 Ballistic Cannon . | . . . . Launcher 2 | . 2 . . Special Weapon . | . . . . Impact Weapon . | . . . . Slashing Weapon . | . . . . Piercing Weapon . | . . . . Special Melee Weapon . | . . . . Unidentified Prototypes . | . . . . Parts Lost 5 | . 1 . 4 Power . | . . . . Propulsion 2 | . . . 2 Utility . | . . . . Weapon 3 | . 1 . 2 Highest Loss Streak 2 | . 1 . 2 To Critical Strikes . | . . . . Average Slot Usage (%) 87 | . 91 100 74 Engine 13 | . 14 14 11 Treads 23 | . 28 28 12 Storage 13 | . 14 14 11 Protection 12 | . 6 14 22 Ballistic Gun 22 | . 22 28 18 Launcher 2 | . 5 . . Naked Turns . | . . . . Heaviest Build 59 | 14 54 54 59 Greatest Support 40 | 40 40 40 40 Greatest Overweight (x) 18 | . 1 1 18 Average Overweight (x) 1 | . . 1 2 Largest Inventory Capacity 20 | 8 20 20 20 Average Capacity 18 | 6 18 20 20 Most Carried 9 | 4 9 9 8 Average Carried 6 | . 5 9 7 Final Capacity 20 | 8 20 20 20 Final Carried 9 | 1 9 9 7 Class Distribution -------------------- 100% | Mutant Dominant Class ---------------- Mutant | -10/Materials Mutant | -10/Mines Mutant | -9/Materials Resources | -11 -10 -10 -9 ----------- Run | Yrd Mat Min Mat Matter Collected 617 | 216 227 49 125 Remotely . | . . . . Salvage Created 450 | . 258 49 143 Parts 45 | . 28 8 9 Haulers Intercepted . | . . . . Recyclers Shooed 1 | . 1 . . Parts Field Recycled . | . . . . Retrieved Matter . | . . . . Parts Self-Destructed . | . . . . Prevented . | . . . . Kills | -11 -10 -10 -9 ------- Run | Yrd Mat Min Mat Combat Hostiles Destroyed 15 | . 9 3 3 Guns 12 | . 6 3 3 AOE 3 | . 3 . . Classes Destroyed 7 | . 5 . 2 Worker 1 | . 1 . . Builder 5 | . 5 . . Watcher 2 | . 2 . . Swarmer 10 | . 7 3 . Grunt 3 | . 2 . 1 Duelist 1 | . . . 1 Sentry 1 | . . . 1 Best Kill Streak 10 | . 10 3 2 Combat Bots Only 5 | . 5 3 2 Max Kills in Single Turn 4 | . 4 1 1 Gunslinging . | . . . . Exploded 1 | . 1 . . Melee . | . . . . Uniques/NPCs Destroyed . | . . . . Combat | -11 -10 -10 -9 -------- Run | Yrd Mat Min Mat Hostile Shots Fired 125 | . 58 14 53 Missed 34 | . 17 2 15 Damage Taken 1178 | . 445 111 622 Core 201 | . 81 20 100 Absorbed by Shields . | . . . . Core Remaining (%) 79 | 100 . 59 . Volleys Fired 61 | . 26 5 30 Largest 2 | . 2 2 2 Hottest 50 | . 50 40 40 Shots Fired 93 | . 45 10 38 Gun 86 | . 38 10 38 Cannon . | . . . . Launcher 7 | . 7 . . Special . | . . . . Kinetic 86 | . 38 10 38 Thermal . | . . . . Explosive 7 | . 7 . . Electromagnetic . | . . . . Robot Hit Streak 7 | . 7 4 5 Robot Miss Streak 5 | . 5 3 2 Penetration Max . | . . . . Secondary Targets 2 | . . 2 . Max Gunslinging Chain 1 | . . 1 . Shots Hit Robots 58 | . 25 6 27 Core Hits 35 | . 23 3 9 Critical Kills . | . . . . Critical Parts Destroyed . | . . . . Critical Strikes . | . . . . Melee Attacks . | . . . . Impact . | . . . . Slashing . | . . . . Piercing . | . . . . Sneak Attacks . | . . . . Combat Hostiles . | . . . . Follow-up Attacks . | . . . . Damage Inflicted 1065 | . 727 66 272 Guns 629 | . 291 66 272 Cannons . | . . . . Explosions 432 | . 432 . . Melee . | . . . . Ramming 4 | . 4 . . Kinetic 629 | . 291 66 272 Thermal . | . . . . Explosive 432 | . 432 . . Electromagnetic . | . . . . Impact . | . . . . Slashing . | . . . . Piercing . | . . . . Highest Corruption . | . . . . Average Corruption . | . . . . Corruption Purged . | . . . . Corruption Blocked . | . . . . Overload Shots . | . . . . Overflow Damage 7 | . 7 . . Projectiles . | . . . . Explosions 7 | . 7 . . Melee . | . . . . Knockbacks . | . . . . Impact . | . . . . Kinetic . | . . . . Secondary . | . . . . Self-Inflicted Damage 68 | . 68 . . Shots 3 | . 3 . . Rammed 1 | . 1 . . Targets Rammed 1 | . 1 . . Kicked . | . . . . Crushed . | . . . . Highest Temperature 77 | . 8 . 77 Average Temperature 31 | . 4 . 37 Received Heat Transfer 342 | . 114 18 210 Siege Activations . | . . . . Robots Corrupted . | . . . . Combat Hostiles . | . . . . Parts Fried . | . . . . Impact Corruptions . | . . . . Robots Melted . | . . . . Combat Hostiles . | . . . . Parts Melted . | . . . . Heat Transferred . | . . . . Parts Sabotaged . | . . . . Parts Stolen . | . . . . Parts Stripped . | . . . . Power Chain Reactions . | . . . . Alert | -11 -10 -10 -9 ------- Run | Yrd Mat Min Mat Peak Influence 308 | . 308 119 101 Initial 49 | . . 49 46 Average 98 | . 119 110 72 Maximum Alert Level 1 | . 1 . . Low Security (%) 87 | 100 77 100 100 Level 1 12 | . 22 . . Level 2 . | . . . . Level 3 . | . . . . Level 4 . | . . . . Level 5 . | . . . . High Security . | . . . . Max Security . | . . . . Squads Dispatched 1 | . . . 1 Investigation . | . . . . Extermination . | . . . . Reinforcement 1 | . . . 1 Assault . | . . . . Garrison . | . . . . Intercept . | . . . . Searches Triggered . | . . . . Construction Impeded . | . . . . Haulers Reinforced . | . . . . Active Scanning Responses . | . . . . Cargo Convoy Interrupts . | . . . . Stealth | -11 -10 -10 -9 --------- Run | Yrd Mat Min Mat Distress Signals 2 | . 2 . . Communications Jammed . | . . . . Distress Signals . | . . . . Times Spotted 27 | . 16 5 6 Peak Tracking Total 4 | . 4 3 4 Tactical Retreats 1 | . 1 . . Traps | -11 -10 -10 -9 ------- Run | Yrd Mat Min Mat Traps Triggered . | . . . . Indirectly . | . . . . Trap Hack Attempts . | . . . . Triggered . | . . . . Disarmed . | . . . . Reprogrammed . | . . . . Reused . | . . . . Traps Extracted . | . . . . Installed . | . . . . Triggered . | . . . . Machines | -11 -10 -10 -9 ---------- Run | Yrd Mat Min Mat Machines Disabled . | . . . . Max in Single Turn . | . . . . Machines Repaired . | . . . . Machines Dismantled . | . . . . Machines Sabotaged . | . . . . Overloaded Fab Kills . | . . . . Hacking | -11 -10 -10 -9 --------- Run | Yrd Mat Min Mat Machines Accessed 1 | . . . 1 Terminals 1 | . . . 1 Fabricators . | . . . . Repair Stations . | . . . . Recycling Units . | . . . . Scanalyzers . | . . . . Garrison Access . | . . . . Total Hacks 1 | . . . 1 Successful . | . . . . Failed 1 | . . . 1 Catastrophic . | . . . . Database Lockouts . | . . . . Manual 1 | . . . 1 Terminals 1 | . . . 1 Fabricators . | . . . . Repair Stations . | . . . . Recycling Units . | . . . . Scanalyzers . | . . . . Garrison Access . | . . . . Terminal Hacks . | . . . . Fabricator Hacks . | . . . . Repair Station Hacks . | . . . . Recycling Unit Hacks . | . . . . Scanalyzer . | . . . . Garrison Access Hacks . | . . . . Unauthorized Hacks . | . . . . Terminals . | . . . . Fabricators . | . . . . Repair Stations . | . . . . Recycling Units . | . . . . Scanalyzers . | . . . . Garrison Access . | . . . . Data Cores Recovered . | . . . . Used . | . . . . Hacking Detections 1 | . . . 1 Full Trace Events . | . . . . Feedback Events . | . . . . Feedback Blocked . | . . . . Robot Schematics Acquired . | . . . . Robots Built . | . . . . Authchips . | . . . . Time . | . . . . Total Robot Build Rating . | . . . . Part Schematics Acquired . | . . . . Parts Built . | . . . . Authchips . | . . . . Time . | . . . . Total Part Build Rating . | . . . . Parts Repaired . | . . . . Time . | . . . . Parts Recycled . | . . . . Recycled Matter . | . . . . Retrieved Matter . | . . . . Retrieved Components . | . . . . Parts Scanalyzed . | . . . . Part Schematics Acquired . | . . . . Parts Damaged . | . . . . Bothacking | -11 -10 -10 -9 ------------ Run | Yrd Mat Min Mat Used RIF Installer . | . . . . Robots Hacked . | . . . . Non-combat . | . . . . Combat . | . . . . Robot Hacks Applied . | . . . . Relay Couplers Released . | . . . . Fabnet Peak Effective % . | . . . . Robots Rewired . | . . . . Allies Hacked . | . . . . Hacks Repelled . | . . . . Allies | -11 -10 -10 -9 -------- Run | Yrd Mat Min Mat Total Allies . | . . . . Largest Group . | . . . . Highest-Rated Group . | . . . . Highest-Rated Ally . | . . . . Total Orders . | . . . . Ally Attacks . | . . . . Total Damage . | . . . . Kills . | . . . . Allies Corrupted . | . . . . Allies Melted . | . . . . Intel | -11 -10 -10 -9 ------- Run | Yrd Mat Min Mat Robot Analysis Total . | . . . . Derelict Logs Recovered 1 | . . 1 . Drone Launches . | . . . . Drone Recoveries . | . . . . Exploration | -11 -10 -10 -9 ------------- Run | Yrd Mat Min Mat Turns Passed 1084 | 59 585 123 317 Spaces Moved 373 | 37 215 46 75 Core 17 | 11 . . 6 Treads 356 | 26 215 46 69 Legs . | . . . . Wheels . | . . . . Hover . | . . . . Flight . | . . . . Fastest Speed 50 | 50 160 240 240 Average Speed 240 | 127 228 240 333 Slowest Speed 950 | 160 240 240 950 Overloaded Moves . | . . . . Propulsion Burnouts . | . . . . Robots Hopped . | . . . . Cave-ins Triggered . | . . . . Exploration Rate (%) 20 | 3 50 18 9 Regions Visited 3 Branch Regions 1 Pre-discovered Areas . | . . . . Known Exits Taken . | . . . . Unknown Exits Taken 3 | 1 1 1 . Scrap Searched . | . . . . Spaces Dug . | . . . . Terrain Destroyed 32 | . 32 . . Melee . | . . . . Projectile . | . . . . AOE 32 | . 32 . . Terrain Rammed . | . . . . Walls Destroyed . | . . . . Machines Disabled . | . . . . Actions | -11 -10 -10 -9 --------- Run | Yrd Mat Min Mat Total 469 | 49 262 50 108 Wait . | . . . . Move 370 | 36 214 45 75 Hop . | . . . . Pick Up 19 | 7 12 . . Fast Attach . | . . . . Attach 10 | 6 2 . 2 Detach . | . . . . Swap 6 | . 5 . 1 Drop 2 | . 2 . . Fire 61 | . 26 5 30 Melee . | . . . . Ram . | . . . . Kick . | . . . . Crush 1 | . 1 . . Escape Stasis . | . . . . Rewire . | . . . . Trap . | . . . . Miscellaneous . | . . . . Route ------- -11/Scrapyard -10/Materials (discovered 2 exits: [*Min x2]) -10/Mines -9/Materials History --------- Turn | Location | Event 5 | -11/Scrapyard | Discovered new exit (range 16) 60 | -11/Scrapyard | Entered Materials 278 | -10/Materials | Discovered new exit (range 4) 330 | -10/Materials | Build established: Mutant 345 | -10/Materials | Discovered new exit (range 12) 645 | -10/Materials | Entered Mines 689 | -10/Mines | Learned Materials terminal intel 747 | -10/Mines | Discovered new exit (range 10) 768 | -10/Mines | Entered Materials 768 | -9/Materials | Evolved 2 slots: Propulsion x1, Utility x1 769 | -9/Materials | Loaded intel: 12 terminal locations 1085 | -9/Materials | Self-destructed Last Messages --------------- R-06 Scavenger collects Imp. Aluminum Leg. K-01 Serf collects debris. R-06 Scavenger collects Aluminum Leg. Acquired 38 matter. K-01 Serf collects debris. R-06 Scavenger collects Sml. Laser. K-01 Serf collects debris. Connecting with Terminal... Current location identified: Materials K-01 Serf collects debris. Critical hit (Burn: +37). Assault Rifle destroyed. Critical hit (Burn: +37). Lgt. Treads destroyed. Y-45 Defender destroyed. R-06 Scavenger collects Lgt. Treads. R-06 Scavenger collects Lgt. Armor Plating. R-06 Scavenger collects Hvy. Assault Rifle. R-06 Scavenger collects Beam Rifle. Acquired 32 matter. Map ----- +----------------------------------------------------+ | | | | | | | | | | | ???????????????????????????????????? | | ???????????????????????????????????? | | ???????????????????????????????????? | | ???????????????????????????????????? | | ???????????????????????????????????? | | ???????????????????????????????????? | | ???????????????????????????????????? | | ???????????????????????????###?????? | | ??????????????????????????? #?????? | | ???????????????????????????# #?????? | | ?????####??????????????????# #?????? | | ?????# #??????????????????# #?????? | | ?""??# #??#?????????????### ###???? | | ?""??+ #??# ????????????# #???? | | ?"T??# #??#"????????????# #???? | | ?""??# #??#T ???????????# T #???? | | ?""??# #??#" "??????????# #???? | | ?????# #???? ?????????# #???? | | ?????# #######+########### ###### | | ?????# | | ?????# *%@ | | ?????# ###/#### ######### | | ?????# #? ?# #???????# ###### | | ?????+ #? + #???????# #?"""? | | ?????# # "" # #???????# #?"T"? | | ?????# + """# #???????# #????? | | ?????## # S"# #??????? +????? | | ??????# # # #?????? # # ???? | | ??????# ######## #?????### # ???? | | ??????? #??????# #???????# #? ??? | | ???????+#??????# #???????# #?#??? | | ?????????"""???# #???????# #????? | | ?????????"T"??? ??????? ????? | | ??????????????? ??????? ????? | | ??????????????? ??????? ????????? | | ??????????????? ????????????????? | | ???????????????????????????????????? | | ???????????????????????????????????? | | ???????????????????????????????????? | | ???????????????????????????????????? | | ???????????????????????????????????? | | ???????????????????????????????????? | | ???????????????????????????????????? | | ???????????????????????????????????? | | ???????????????????????????????????? | +----------------------------------------------------+ Best States ------------- Heat Dissipation 28 Energy Generation 10 Energy Capacity 250 Matter Stores 300 Matter Capacity 300 Sight Range 16 Terrain Scan Density 10 Armor Coverage 300 Evasion (%) 50 Recoil Reduction 2 Item Schematics ----------------- None Robot Schematics ------------------ None Fabricated ------------ Nothing Alien Tech Used ----------------- None Achievements -------------- None Challenges ------------ None Game ------ Seed WeaponsOmegaScrap Manual? 0 Play Time 00:10:15 Cumulative 3.6 hours Start 2024.04.04 @ 18:38:48 End 2024.04.04 @ 18:48:41 Sessions 1 Manual Loads 0 Difficulty Rogue Special Mode None Game No. 7 Rogue 7 Adventurer 0 Explorer 0 Win Type - Total 0 Types 0/0/0/0/0/0/0/0/0 Lore% 2 Gallery% 9 Achievement% 10 Wizard Run 0 Options --------- Layout 1 ASCII 0 Keyboard 0 Movement Mouse Keybinds 0 Fullscreen 2 Font 32/Terminus Map View 50x35 Zoom Use 2% Tactical HUD 0 Map Filters NONE Filters NONE Steam 1 RUN: 7ee1c589-19c1-444d-a633-cad376dcbc7e